fUST/lending_fUST_20241231
["ID","MTS","AMOUNT","RATE_DAILY","PERIOD"]
[347239091,1735609847105,-567.8,0.00020245,3]
[347239092,1735609847114,-505.15185572,0.00020245,3]
[347239093,1735609847124,-500.0,0.00020245,3]
[347239094,1735609847133,-194.79960432,0.00020245,3]
[347239095,1735609847142,-500.0,0.00020245,3]
[347239096,1735609847151,-627.74,0.00020245,3]
[347239097,1735609847160,-500.0,0.00020246,3]
[347239098,1735609847170,-500.0,0.00020246,3]
[347239099,1735609847179,-502.25459951,0.00020246,3]
[347239100,1735609847188,-503.45819713,0.00020246,3]
[347239101,1735609847197,-181.97403341,0.00020246,3]
[347239102,1735609847209,-318.02596659,0.00020246,3]
[347239103,1735609847218,-500.0,0.00020246,3]
[347239104,1735609847227,-500.0,0.00020246,3]
[347239105,1735609847236,-1186.66806596,0.00020246,3]
[347239619,1735610721345,16000.0,0.00021053,120]
[347239620,1735610727290,154.14971625,0.00025,120]
[347239623,1735610927401,-262.3219926,0.00019122,2]
[347239624,1735610927427,-1193.20985164,0.00019178,11]
[347239679,1735611032254,-2405.44970186,0.00019178,11]
[347239681,1735611032263,-1007.80171548,0.000197,4]
[347239683,1735611032272,-165.76815578,0.00019868,2]
[347239684,1735611032282,-275.0,0.0001987,2]
[347239687,1735611032292,-300.0,0.00019966,2]
[347239689,1735611032302,-500.0,0.00019967,3]
[347239691,1735611032311,-1141.49,0.00019967,3]
[347239693,1735611032321,-500.0,0.00019967,3]
[347239695,1735611032331,-527.69,0.00019967,3]
[347239697,1735611032341,-500.0,0.00019967,3]
[347239699,1735611032350,-171.219,0.00019968,2]
[347239701,1735611032360,-500.0,0.00019968,3]
[347239703,1735611032371,-500.0,0.00019968,3]
[347239705,1735611032380,-504.71618847,0.00019968,3]
[347239707,1735611032389,-634.39,0.00019968,3]
[347239709,1735611032398,-691.87,0.00019968,3]
[347239711,1735611032408,-500.0,0.00019968,3]
[347239713,1735611032417,-500.0,0.00019968,3]
[347239715,1735611032427,-500.0,0.00019968,3]
[347239717,1735611032436,-525.35241673,0.00019968,3]
[347239719,1735611032446,-783.66,0.00019968,3]
[347239721,1735611032455,-556.07282016,0.00019968,3]
[347239723,1735611032465,-500.0,0.00019968,3]
[347239725,1735611032474,-501.63321103,0.00019968,3]
[347239727,1735611032483,-503.26370927,0.00019968,3]
[347239729,1735611032492,-501.7522239,0.00019968,3]
[347239731,1735611032501,-505.54932828,0.00019968,3]
[347239733,1735611032510,-504.69358788,0.00019968,3]
[347239735,1735611032519,-501.28816227,0.00019968,3]
[347239737,1735611032529,-501.98422931,0.00019968,3]
[347239739,1735611032538,-505.63908535,0.00019968,3]
[347239741,1735611032547,-503.41801722,0.00019968,3]
[347239743,1735611032556,-329.04345223,0.00019968,3]
[347239745,1735611032565,-503.42101388,0.00019968,3]
[347239747,1735611032574,-502.345078,0.00019968,3]
[347239749,1735611032583,-502.34485492,0.00019968,3]
[347239751,1735611032593,-508.62191711,0.00019968,3]
[347239753,1735611032602,-538.75495076,0.00019968,3]
[347239755,1735611032611,-503.44301009,0.00019968,3]
[347239757,1735611032623,-501.59532132,0.00019968,3]
[347239759,1735611032632,-238.63095626,0.00019968,3]
[347239761,1735611032641,-503.5,0.00019968,3]
[347239763,1735611032650,-501.11514241,0.00019968,3]
[347239765,1735611032660,-507.34889569,0.00019968,3]
[347239767,1735611032669,-500.85172094,0.00019968,3]
[347239769,1735611032678,-506.21522054,0.00019968,3]
[347239771,1735611032687,-516.33222642,0.00019968,3]
[347239773,1735611032697,-506.5144914,0.00019968,3]
[347239775,1735611032706,-511.78665425,0.00019968,3]
[347239777,1735611032715,-503.27998208,0.00019968,3]
[347239779,1735611032724,-501.03855673,0.00019968,3]
[347239781,1735611032734,-500.0,0.00019968,3]
[347239783,1735611032743,-500.0,0.00019968,3]
[347239785,1735611032753,-508.90001517,0.00019968,3]
[347239787,1735611032763,-503.75957084,0.00019968,3]
[347239789,1735611032772,-504.96777125,0.00019968,3]
[347239791,1735611032781,-500.0,0.00019968,3]
[347239793,1735611032791,-19191.29,0.00019968,3]
[347239795,1735611032800,-500.99761784,0.00019968,3]
[347239797,1735611032811,-502.56217102,0.00019968,3]
[347239799,1735611032821,-505.577336,0.00019968,3]
[347239800,1735611032831,-507.01140658,0.00019968,3]
[347239801,1735611032841,-501.82914743,0.00019968,3]
[347239802,1735611032851,-501.83200106,0.00019968,3]
[347239803,1735611032861,-500.0,0.00019968,3]
[347239804,1735611032966,-500.0,0.00019968,3]
[347239805,1735611032976,-501.8792601,0.00019968,3]
[347239806,1735611032986,-503.04416942,0.00019968,3]
[347239807,1735611032995,-506.25800879,0.00019968,3]
[347239808,1735611033004,-509.13970798,0.00019968,3]
[347239809,1735611033014,-501.20136151,0.00019968,3]
[347239810,1735611033023,-509.41313108,0.00019968,3]
[347239811,1735611033035,-503.1677126,0.00019968,3]
[347239812,1735611033045,-677.58,0.00019968,3]
[347239813,1735611033054,-500.0,0.00019968,3]
[347239814,1735611033064,-500.0,0.00019968,3]
[347239815,1735611033074,-500.0,0.00019968,3]
[347239816,1735611033084,-500.0,0.00019968,3]
[347239817,1735611033094,-500.0,0.00019968,3]
[347239818,1735611033103,-680.82,0.00019968,3]
[347239819,1735611033116,-502.94114258,0.00019968,3]
[347239820,1735611033126,-507.10699328,0.00019968,3]
[347239821,1735611033136,-500.42830118,0.00019968,3]
[347239822,1735611033145,-501.85932902,0.00019968,3]
[347239823,1735611033155,-501.41802217,0.00019968,3]
[347239824,1735611033164,-726.59,0.00019968,3]
[347239825,1735611033173,-501.45954815,0.00019968,3]
[347239826,1735611033183,-2287.11,0.00019968,3]
[347239827,1735611033192,-566.93483587,0.00019968,3]
[347239828,1735611033202,-500.80560983,0.00019968,3]
[347239829,1735611033212,-501.18156585,0.00019968,3]
[347239830,1735611033221,-505.48381632,0.00019968,3]
[347239831,1735611033231,-500.49862638,0.00019968,3]
[347239832,1735611033241,-627.16,0.00019968,3]
[347239833,1735611033251,-500.0,0.00019968,3]
[347239834,1735611033261,-502.56048489,0.00019968,3]
[347239835,1735611033270,-579.48,0.00019968,3]
[347239836,1735611033280,-502.04106863,0.00019968,3]
[347239837,1735611033289,-260.30023074,0.00019968,3]
[347239838,1735611033299,-503.10959947,0.00019968,3]
[347239839,1735611033310,-645.29728406,0.00019968,3]
[347239840,1735611033319,-250.59095075,0.00019968,3]
[347239841,1735611033329,-540.04,0.00019968,3]
[347239842,1735611033338,-501.12176023,0.00019968,3]
[347239843,1735611033348,-502.0179948,0.00019968,3]
[347239844,1735611033357,-505.63548514,0.00019968,3]
[347239845,1735611033368,-504.49525942,0.00019968,3]
[347239846,1735611033377,-441.49298094,0.00019968,3]
[347239847,1735611033387,-625.56952142,0.00019968,3]
[347239848,1735611033396,-503.35263595,0.00019968,3]
[347239849,1735611033405,-501.72820697,0.00019968,3]
[347239850,1735611033415,-500.0,0.00019968,3]
[347239851,1735611033424,-508.704367,0.00019968,3]
[347239852,1735611033434,-506.19760019,0.00019968,3]
[347239853,1735611033443,-500.0,0.00019968,3]
[347239854,1735611033453,-503.96798904,0.00019968,3]
[347239855,1735611033462,-833.75,0.00019968,3]
[347239856,1735611033472,-503.2137748,0.00019968,3]
[347239857,1735611033481,-500.0,0.00019968,2]
[347239858,1735611033490,-503.20815363,0.00019968,3]
[347239859,1735611033500,-500.0,0.00019968,3]
[347239860,1735611033509,-502.67344465,0.00019968,3]
[347239861,1735611033519,-507.55205287,0.00019968,3]
[347239862,1735611033528,-500.0,0.00019968,3]
[347239863,1735611033538,-503.91869497,0.00019968,3]
[347239864,1735611033548,-500.0,0.00019968,3]
[347239865,1735611033557,-500.0,0.00019968,3]
[347239866,1735611033567,-547.06,0.00019968,3]
[347239867,1735611033577,-500.0,0.00019968,3]
[347239868,1735611033587,-500.0,0.00019968,3]
[347239869,1735611033597,-510.56762018,0.00019968,3]
[347239870,1735611033607,-511.3366219,0.00019968,3]
[347239871,1735611033619,-502.77531083,0.00019968,3]
[347239872,1735611033629,-750.59,0.00019968,3]
[347239873,1735611033639,-502.03739566,0.00019968,3]
[347239875,1735611033649,-4713.73,0.00019968,3]
[347239877,1735611033659,-500.0,0.00019968,3]
[347239879,1735611033669,-500.61767614,0.00019968,3]
[347239880,1735611033680,-501.93781968,0.00019968,3]
[347239881,1735611033689,-500.0,0.00019968,3]
[347239882,1735611033699,-792.78,0.00019968,3]
[347239883,1735611033708,-500.0,0.00019968,3]
[347239884,1735611033717,-1367.57,0.00019968,3]
[347239885,1735611033727,-511.21369611,0.00019968,3]
[347239886,1735611033737,-502.90602066,0.00019969,3]
[347239887,1735611033746,-521.6256264,0.00019969,3]
[347239888,1735611033756,-500.0,0.00019969,3]
[347239889,1735611033765,-501.73544159,0.00019969,3]
[347239890,1735611033775,-504.00650153,0.00019969,3]
[347239891,1735611033785,-500.0,0.00019969,3]
[347239892,1735611033794,-613.21136518,0.00019969,3]
[347239893,1735611033804,-505.14856472,0.00019969,3]
[347239894,1735611033814,-504.50231624,0.00019969,3]
[347239895,1735611033823,-502.2647745,0.00019969,3]
[347239896,1735611033833,-500.0,0.00019969,3]
[347239897,1735611033843,-500.0,0.00019969,2]
[347239898,1735611033853,-306.1360756,0.00019969,3]
[347239899,1735611033864,-210.84254848,0.00019969,3]
[347239900,1735611033873,-504.29278873,0.00019969,3]
[347239901,1735611033883,-502.87001527,0.00019969,3]
[347239902,1735611033892,-500.0,0.00019969,3]
[347239903,1735611033902,-500.0,0.00019969,3]
[347239904,1735611033911,-500.0,0.00019969,3]
[347239905,1735611033920,-502.56541807,0.00019969,3]
[347239906,1735611033930,-500.90656527,0.00019969,3]
[347239908,1735611033939,-500.0,0.00019969,3]
[347239909,1735611033949,-503.66708583,0.00019969,3]
[347239911,1735611033959,-352.28145253,0.00019969,3]
[347239912,1735611033968,-500.0,0.00019969,3]
[347239914,1735611033978,-507.7482609,0.00019969,3]
[347239916,1735611033988,-501.26181455,0.00019969,3]
[347239917,1735611033997,-505.25855957,0.00019969,3]
[347239918,1735611034008,-596.5557675,0.00019969,3]
[347239919,1735611034017,-503.52856368,0.00019969,3]
[347239920,1735611034029,-500.87139051,0.00019969,3]
[347239921,1735611034039,-501.3615822,0.00019969,3]
[347239922,1735611034048,-500.0,0.00019969,3]
[347239923,1735611034058,-509.39617238,0.00019969,3]
[347239924,1735611034068,-508.04266644,0.00019969,3]
[347239925,1735611034078,-504.96862557,0.00019969,3]
[347239926,1735611034088,-505.37399644,0.00019969,3]
[347239928,1735611034097,-503.2220967,0.00019969,3]
[347239929,1735611034107,-504.43842735,0.00019969,3]
[347239930,1735611034120,-503.01222748,0.00019969,3]
[347239931,1735611034129,-500.0,0.00019969,3]
[347239932,1735611034140,-579.9101675,0.00019969,3]
[347239933,1735611034150,-503.95141321,0.00019969,3]
[347239934,1735611034159,-275.77860749,0.00019969,3]
[347239935,1735611034169,-501.57255582,0.00019969,3]
[347239936,1735611034179,-500.0,0.00019969,3]
[347239937,1735611034188,-503.32122877,0.00019969,3]
[347239938,1735611034199,-500.0,0.00019969,3]
[347239939,1735611034209,-410.88594948,0.00019969,3]
[347239940,1735611034218,-502.83802967,0.00019969,3]
[347239941,1735611034230,-503.10916992,0.00019969,3]
[347239942,1735611034240,-500.0,0.00019969,3]
[347239943,1735611034250,-504.97107774,0.00019969,3]
[347239944,1735611034260,-629.52514334,0.00019969,3]
[347239945,1735611034270,-502.45340826,0.00019969,3]
[347239946,1735611034280,-502.89526421,0.00019969,3]
[347239947,1735611034290,-503.68489701,0.00019969,3]
[347239948,1735611034299,-500.0,0.00019969,3]
[347239949,1735611034310,-500.0,0.00019969,3]
[347239950,1735611034319,-503.4094256,0.00019969,3]
[347239951,1735611034329,-500.0,0.00019969,3]
[347239952,1735611034339,-500.78378454,0.00019969,3]
[347239953,1735611034349,-500.0,0.00019969,3]
[347239954,1735611034358,-501.75883278,0.00019969,3]
[347239955,1735611034370,-500.0,0.00019969,3]
[347239956,1735611034379,-553.25599227,0.00019969,3]
[347239957,1735611034389,-500.0,0.00019969,3]
[347239958,1735611034398,-501.14208716,0.00019969,3]
[347239959,1735611034407,-501.05885345,0.00019969,3]
[347239960,1735611034416,-500.0,0.00019969,3]
[347239961,1735611034426,-503.15254645,0.00019969,3]
[347239962,1735611034435,-504.03461667,0.00019969,3]
[347239963,1735611034445,-500.0,0.00019969,3]
[347239964,1735611034455,-501.90888916,0.00019969,3]
[347239965,1735611034464,-392.81461964,0.00019969,3]
[347239966,1735611034474,-511.72981737,0.00019969,3]
[347239967,1735611034484,-500.0,0.00019969,3]
[347239968,1735611034493,-509.43284767,0.00019969,3]
[347239969,1735611034503,-502.34711127,0.00019969,3]
[347239970,1735611034512,-508.34725536,0.00019969,3]
[347239971,1735611034521,-492.58866439,0.00019969,3]
[347239972,1735611034531,-917.09,0.00019969,3]
[347239973,1735611034540,-500.0,0.00019969,3]
[347239974,1735611034549,-503.25059664,0.00019969,3]
[347239975,1735611034559,-500.0,0.00019969,3]
[347239976,1735611034568,-460.62231786,0.00019969,3]
[347239977,1735611034577,-510.63349129,0.00019969,3]
[347239978,1735611034586,-182.86621954,0.00019969,3]
[347239979,1735611034596,-867.46,0.00019969,3]
[347239980,1735611034605,-565.68,0.00019969,3]
[347239981,1735611034615,-500.0,0.00019969,3]
[347239982,1735611034625,-500.0,0.00019969,3]
[347239983,1735611034635,-500.0,0.00019969,3]
[347239984,1735611034644,-1021.18,0.00019969,3]
[347239985,1735611034655,-500.0,0.00019969,3]
[347239986,1735611034664,-503.58251728,0.00019969,3]
[347239987,1735611034673,-500.0,0.00019969,3]
[347239988,1735611034683,-500.0,0.00019969,3]
[347239989,1735611034692,-500.0,0.00019969,3]
[347239990,1735611034702,-500.0,0.00019969,3]
[347239991,1735611034711,-500.0,0.00019969,3]
[347239992,1735611034720,-961.07,0.00019969,3]
[347239993,1735611034729,-513.43326534,0.00019969,3]
[347239994,1735611034739,-541.31,0.00019969,3]
[347239995,1735611034748,-500.0,0.00019969,3]
[347239996,1735611034757,-2103.49,0.00019969,3]
[347239997,1735611034766,-506.02599199,0.00019969,3]
[347239998,1735611034776,-500.0,0.00019969,3]
[347239999,1735611034785,-554.40996512,0.00019969,3]
[347240000,1735611034794,-593.16,0.00019969,3]
[347240001,1735611034804,-505.82164883,0.00019969,3]
[347240002,1735611034813,-504.51658395,0.00019969,3]
[347240003,1735611034822,-503.16581134,0.00019969,3]
[347240004,1735611034831,-506.78078016,0.00019969,3]
[347240005,1735611034840,-502.11415601,0.00019969,3]
[347240006,1735611034849,-506.18883535,0.00019969,3]
[347240007,1735611034859,-500.0,0.00019969,3]
[347240008,1735611034869,-152.77,0.00019969,2]
[347240009,1735611034878,-6370.5046678,0.0001997,2]
[347240010,1735611034887,-73650.84188211,0.0001997,2]
[347240011,1735611034897,-500.0,0.0001997,3]
[347240012,1735611034906,-500.0,0.0001997,3]
[347240013,1735611034914,-500.0,0.0001997,3]
[347240014,1735611034923,-507.01741311,0.0001997,3]
[347240015,1735611034933,-500.0,0.0001997,3]
[347240016,1735611034942,-500.0,0.0001997,3]
[347240017,1735611034951,-500.0,0.0001997,3]
[347240018,1735611034960,-500.0,0.0001997,3]
[347240019,1735611034969,-500.0,0.0001997,3]
[347240020,1735611034979,-512.3456436,0.0001997,3]
[347240021,1735611034988,-501.11760828,0.0001997,3]
[347240022,1735611034997,-630.29966655,0.0001997,3]
[347240023,1735611035006,-500.0,0.0001997,3]
[347240024,1735611035017,-500.0,0.00019971,3]
[347240025,1735611035101,-503.54195776,0.00019971,3]
[347240026,1735611035111,-500.0,0.00019971,3]
[347240027,1735611035121,-500.0,0.00019971,3]
[347240028,1735611035130,-503.55532199,0.00019971,3]
[347240029,1735611035139,-6495.26,0.00019971,3]
[347240030,1735611035148,-982.34,0.00019971,3]
[347240031,1735611035158,-500.0,0.00019971,3]
[347240032,1735611035167,-4144.74,0.00019972,3]
[347240033,1735611035176,-500.0,0.00019973,2]
[347240034,1735611035186,-593.164,0.0002,2]
[347240035,1735611035195,-359.82527269,0.0002,4]
[347240036,1735611035205,-500.0,0.00020241,3]
[347240037,1735611035214,-500.0,0.00020241,3]
[347240038,1735611035223,-1141.49,0.00020241,3]
[347240039,1735611035233,-201.43580673,0.00020241,3]
[347240040,1735611035242,-527.69,0.00020241,3]
[347240041,1735611035251,-500.0,0.00020241,3]
[347240042,1735611035261,-500.0,0.00020242,3]
[347240043,1735611035270,-500.0,0.00020242,3]
[347240044,1735611035279,-634.39,0.00020242,3]
[347240045,1735611035289,-691.87,0.00020242,3]
[347240046,1735611035303,-295.11434425,0.00020242,3]
[347240047,1735611035318,-783.66,0.00020242,3]
[347240048,1735611035330,-500.0,0.00020242,3]
[347240049,1735611035341,-500.0,0.00020242,3]
[347240050,1735611035351,-500.0,0.00020242,3]
[347240051,1735611035360,-19191.29,0.00020242,3]
[347240052,1735611035369,-500.0,0.00020242,3]
[347240053,1735611035379,-500.0,0.00020242,3]
[347240054,1735611035388,-677.58,0.00020242,3]
[347240055,1735611035397,-233.97133606,0.00020242,3]
[347240056,1735611035406,-500.0,0.00020242,3]
[347240057,1735611035416,-500.0,0.00020242,3]
[347240058,1735611035425,-680.82,0.00020242,3]
[347240059,1735611035435,-726.59,0.00020242,3]
[347240060,1735611035446,-1199.0637994,0.00020242,3]
[347240061,1735611035461,-1088.0462006,0.00020242,3]
[347240062,1735611035471,-627.16,0.00020242,3]
[347240063,1735611035480,-500.0,0.00020242,3]
[347240064,1735611035489,-579.48,0.00020242,3]
[347240065,1735611035498,-540.04,0.00020242,3]
[347240066,1735611035507,-500.0,0.00020242,3]
[347240067,1735611035516,-833.75,0.00020242,3]
[347240068,1735611035526,-405.0316675,0.00020242,3]
[347240069,1735611035535,-500.0,0.00020242,3]
[347240070,1735611035545,-500.0,0.00020242,3]
[347240071,1735611035554,-547.06,0.00020242,3]
[347240072,1735611035563,-500.0,0.00020242,3]
[347240073,1735611035572,-500.0,0.00020242,3]
[347240074,1735611035581,-750.59,0.00020242,3]
[347240075,1735611035591,-4713.73,0.00020242,3]
[347240076,1735611035600,-172.26953321,0.00020242,3]
[347240077,1735611035610,-792.78,0.00020242,3]
[347240078,1735611035621,-531.89919825,0.00020242,3]
[347240079,1735611035630,-1367.57,0.00020242,3]
[347240080,1735611035639,-590.94997452,0.00020243,3]
[347240081,1735611035649,-500.0,0.00020243,3]
[347240082,1735611035658,-500.0,0.00020243,3]
[347240083,1735611035667,-506.05976599,0.00020243,3]
[347240084,1735611035676,-500.0,0.00020243,3]
[347240085,1735611035685,-500.0,0.00020243,3]
[347240086,1735611035695,-436.87616929,0.00020243,3]
[347240087,1735611035704,-500.0,0.00020243,3]
[347240088,1735611035713,-500.0,0.00020243,3]
[347240089,1735611035722,-508.02327619,0.00020243,3]
[347240090,1735611035731,-507.63833439,0.00020243,3]
[347240091,1735611035740,-500.0,0.00020243,3]
[347240092,1735611035749,-500.0,0.00020243,3]
[347240093,1735611035759,-500.0,0.00020243,3]
[347240094,1735611035769,-500.0,0.00020243,3]
[347240095,1735611035778,-917.09,0.00020243,3]
[347240096,1735611035787,-500.0,0.00020243,3]
[347240097,1735611035796,-500.0,0.00020243,3]
[347240098,1735611035805,-867.46,0.00020243,3]
[347240099,1735611035814,-565.68,0.00020243,3]
[347240100,1735611035823,-500.0,0.00020243,3]
[347240101,1735611035833,-500.0,0.00020243,3]
[347240102,1735611035842,-547.77269744,0.00020243,3]
[347240103,1735611035851,-1021.18,0.00020243,3]
[347240104,1735611035860,-201.34816305,0.00020243,3]
[347240105,1735611035871,-500.0,0.00020243,3]
[347240106,1735611035880,-500.0,0.00020243,3]
[347240107,1735611035889,-500.0,0.00020243,3]
[347240108,1735611035899,-500.0,0.00020243,3]
[347240109,1735611035908,-961.07,0.00020243,3]
[347240110,1735611035918,-541.31,0.00020243,3]
[347240111,1735611035928,-500.0,0.00020243,3]
[347240112,1735611035937,-2103.49,0.00020243,3]
[347240113,1735611035949,-502.25217097,0.00020243,3]
[347240114,1735611035959,-593.16,0.00020243,3]
[347240115,1735611035968,-500.0,0.00020243,3]
[347240116,1735611035977,-500.0,0.00020244,3]
[347240117,1735611035987,-500.0,0.00020244,3]
[347240118,1735611035996,-500.0,0.00020244,3]
[347240119,1735611036005,-500.0,0.00020244,3]
[347240120,1735611036015,-500.0,0.00020244,3]
[347240121,1735611036029,-310.52059968,0.00020244,3]
[347240122,1735611036038,-500.0,0.00020244,3]
[347240123,1735611036047,-598.61,0.00020244,3]
[347240124,1735611036057,-510.90405364,0.00020245,3]
[347240125,1735611036072,-500.0,0.00020245,3]
[347240126,1735611036082,-6495.26,0.00020245,3]
[347240127,1735611036092,-500.0,0.00020245,3]
[347240128,1735611036102,-982.34,0.00020245,3]
[347240129,1735611036111,-500.0,0.00020245,3]
[347240130,1735611036122,-4144.74,0.00020246,3]
[347240131,1735611036131,-231.18950528,0.00020273,2]
[347240132,1735611036141,-196.395646,0.00020447,2]
[347240133,1735611036150,-201.36,0.000205,2]
[347240134,1735611036159,-500.0,0.00020515,3]
[347240135,1735611036169,-1141.49,0.00020515,3]
[347240136,1735611036178,-527.69,0.00020515,3]
[347240137,1735611036187,-500.0,0.00020516,3]
[347240138,1735611036197,-186.5118489,0.00020516,3]
[347240139,1735611036206,-634.39,0.00020516,3]
[347240140,1735611036217,-691.87,0.00020516,3]
[347240141,1735611036226,-783.66,0.00020516,3]
[347240142,1735611036238,-500.0,0.00020516,3]
[347240143,1735611036248,-500.0,0.00020516,3]
[347240144,1735611036257,-500.0,0.00020516,3]
[347240145,1735611036267,-19191.29,0.00020516,3]
[347240146,1735611036276,-500.0,0.00020516,3]
[347240147,1735611036285,-500.0,0.00020516,3]
[347240148,1735611036295,-677.58,0.00020516,3]
[347240149,1735611036304,-500.0,0.00020516,3]
[347240150,1735611036313,-500.0,0.00020516,3]
[347240151,1735611036323,-680.82,0.00020516,3]
[347240152,1735611036332,-726.59,0.00020516,3]
[347240153,1735611036341,-2287.11,0.00020516,3]
[347240154,1735611036351,-627.16,0.00020516,3]
[347240155,1735611036360,-500.0,0.00020516,3]
[347240156,1735611036370,-579.48,0.00020516,3]
[347240157,1735611036379,-540.04,0.00020516,3]
[347240158,1735611036391,-500.0,0.00020516,3]
[347240159,1735611036399,-833.75,0.00020516,3]
[347240160,1735611036408,-500.0,0.00020516,3]
[347240161,1735611036417,-500.0,0.00020516,3]
[347240162,1735611036427,-547.06,0.00020516,3]
[347240163,1735611036436,-500.0,0.00020516,3]
[347240164,1735611036445,-500.0,0.00020516,3]
[347240165,1735611036454,-750.59,0.00020516,3]
[347240166,1735611036464,-4713.73,0.00020516,3]
[347240167,1735611036473,-792.78,0.00020516,3]
[347240168,1735611036482,-1367.57,0.00020516,3]
[347240169,1735611036491,-502.1193779,0.00020517,3]
[347240170,1735611036500,-609.28032847,0.00020517,3]
[347240171,1735611036510,-500.0,0.00020517,3]
[347240172,1735611036519,-500.0,0.00020517,3]
[347240173,1735611036528,-500.0,0.00020517,3]
[347240174,1735611036537,-500.0,0.00020517,3]
[347240175,1735611036546,-500.0,0.00020517,3]
[347240176,1735611036555,-500.0,0.00020517,3]
[347240177,1735611036564,-500.0,0.00020517,3]
[347240178,1735611036573,-347.63836463,0.00020517,3]
[347240179,1735611036583,-500.0,0.00020517,3]
[347240180,1735611036592,-917.09,0.00020517,3]
[347240181,1735611036601,-500.0,0.00020517,3]
[347240182,1735611036611,-504.63604512,0.00020517,3]
[347240183,1735611036622,-867.46,0.00020517,3]
[347240184,1735611036631,-565.68,0.00020517,3]
[347240185,1735611036641,-500.0,0.00020517,3]
[347240186,1735611036651,-500.0,0.00020517,3]
[347240187,1735611036660,-1021.18,0.00020517,3]
[347240188,1735611036670,-513.86227166,0.00020517,3]
[347240189,1735611036679,-500.0,0.00020517,3]
[347240190,1735611036688,-500.0,0.00020517,3]
[347240191,1735611036697,-601.55060852,0.00020517,3]
[347240192,1735611036707,-961.07,0.00020517,3]
[347240193,1735611036716,-541.31,0.00020517,3]
[347240194,1735611036726,-500.0,0.00020517,3]
[347240195,1735611036735,-2103.49,0.00020517,3]
[347240196,1735611036745,-593.16,0.00020517,3]
[347240197,1735611036754,-500.0,0.00020517,3]
[347240198,1735611036764,-500.0,0.00020518,3]
[347240199,1735611036773,-500.0,0.00020518,3]
[347240200,1735611036782,-500.0,0.00020518,3]
[347240201,1735611036793,-500.0,0.00020518,3]
[347240202,1735611036803,-500.0,0.00020518,3]
[347240203,1735611036813,-500.0,0.00020518,3]
[347240204,1735611036822,-6495.26,0.00020519,3]
[347240205,1735611036831,-500.0,0.00020519,3]
[347240206,1735611036840,-982.34,0.00020519,3]
[347240207,1735611036849,-500.0,0.00020519,3]
[347240208,1735611036858,-500.0,0.0002052,3]
[347240209,1735611036868,-4144.74,0.0002052,3]
[347240210,1735611036876,-167.889048,0.00020521,2]
[347240211,1735611036886,-500.85212995,0.00020521,2]
[347240212,1735611036895,-500.0,0.00020654,4]
[347240213,1735611036905,-500.0,0.0002072,3]
[347240214,1735611036914,-578.74595422,0.0002072,3]
[347240215,1735611036923,-12352.73622144,0.00020721,2]
[347240216,1735611036933,-500.0,0.00020789,3]
[347240217,1735611036942,-1141.49,0.00020789,3]
[347240218,1735611036951,-527.69,0.00020789,3]
[347240219,1735611036960,-500.0,0.0002079,3]
[347240220,1735611036970,-634.39,0.0002079,3]
[347240221,1735611037049,-691.87,0.0002079,3]
[347240222,1735611037059,-783.66,0.0002079,3]
[347240223,1735611037069,-500.0,0.0002079,3]
[347240224,1735611037078,-500.0,0.0002079,3]
[347240225,1735611037087,-545.23511785,0.0002079,3]
[347240226,1735611037097,-10530.32572742,0.0002079,3]
[347240227,1735611037111,-8660.96427258,0.0002079,3]